bitfinex/quotes_ETHUSD_20250215
["timestamp","ask_amount","ask_price","bid_price","bid_amount"]
[1739652064523,8.1808,2685.7,2685.5,5.13897278]
[1739652064687,8.1808,2685.7,2685.5,8.86259278]
[1739652065028,8.1808,2685.7,2685.5,5.13897278]
[1739652065320,8.1808,2685.7,2685.6,3.72356]
[1739652069525,8.1808,2685.7,2685.4,0.0830875]
[1739652069696,8.9693,2685.7,2685.5,3.72369]
[1739652070503,9.86623,2685.7,2685.4,0.0830875]
[1739652071689,0.7885,2685.6,2685.4,0.0830875]
[1739652071894,8.1808,2685.5,2685.4,0.0830875]
[1739652072613,8.1808,2685.5,2685.4,3.8069275]
[1739652072816,8.1808,2685.5,2685.4,0.0830875]
[1739652079512,8.1808,2685.5,2685.4,3.8069275]
[1739652079719,8.1808,2685.5,2685.4,0.0830875]
[1739652082700,8.1808,2685.5,2685.4,3.8069275]
[1739652083412,8.1808,2685.5,2685.4,0.0830875]
[1739652084411,8.1808,2685.5,2685.4,3.8069275]
[1739652084733,8.1808,2685.5,2685.4,4.5805275]
[1739652085140,3.72281,2686.2,2685.9,3.72314]
[1739652085141,0.7611,2686.2,2685.9,3.72314]
[1739652085999,0.7611,2686.2,2686.0,5.13836278]
[1739652086235,3.29058075,2686.3,2686.2,3.72273]
[1739652086438,4.4829,2686.9,2686.4,3.72243]
[1739652086609,3.398568,2686.8,2686.4,5.13780278]
[1739652086809,0.398568,2686.8,2686.4,5.13780278]
[1739652087520,0.398568,2686.8,2686.4,1.41537278]
[1739652087752,3.0,2686.8,2686.3,3.72255]
[1739652087921,0.7611,2686.9,2686.4,3.72241]
[1739652088250,4.48287,2686.9,2686.4,3.72241]
[1739652088438,4.48287,2686.9,2686.2,4.49633]
[1739652088439,6.72192,2686.8,2686.2,4.49633]
[1739652088615,0.03790637,2686.7,2686.2,4.49633]
[1739652089217,3.0,2686.3,2685.7,3.55845302]
[1739652089539,3.0,2686.3,2685.8,4.49678]
[1739652090161,0.03790637,2686.2,2685.8,4.49678]
[1739652090360,3.0,2686.3,2685.8,4.49678]
[1739652090534,3.0,2686.3,2685.8,8.21998]
[1739652091559,3.0,2686.3,2685.8,4.49678]
[1739652091950,3.0,2686.3,2685.8,8.21997]
[1739652092149,3.0,2686.3,2685.8,4.49678]
[1739652092335,3.0,2686.3,2685.8,8.21998]
[1739652093038,3.0,2686.5,2685.8,4.49678]
[1739652093424,3.0,2686.5,2686.0,3.723]
[1739652093668,4.19577426,2686.5,2686.0,3.723]
[1739652094016,3.0,2686.3,2686.0,3.723]
[1739652094825,3.0,2686.3,2686.1,3.72282]
[1739652096741,3.0,2686.3,2686.0,7.44593]
[1739652097160,3.0,2686.3,2686.0,3.72293]
[1739652097460,3.0,2686.3,2685.8,4.49679]
[1739652098156,3.0,2686.3,2685.8,8.21999]
[1739652098371,3.0,2686.3,2685.8,4.49679]
[1739652098659,3.0,2686.3,2685.9,3.72312]
[1739652098837,3.0,2686.3,2685.8,4.49679]
[1739652099043,3.0,2686.3,2685.8,8.21996]
[1739652099664,5.1808,2686.2,2685.8,8.21996]
[1739652100430,5.1808,2686.2,2685.8,4.49677]
[1739652100633,0.7996,2686.1,2685.8,3.72317]
[1739652100928,3.7996,2686.1,2685.6,4.49208]
[1739652101129,12.74125637,2686.1,2685.4,5.54741353]
[1739652101339,12.70335,2686.1,2685.4,4.5754375]
[1739652101547,0.03790637,2686.0,2685.6,3.72354]
[1739652101761,12.70335,2686.1,2685.6,3.72354]
[1739652103362,0.03790637,2686.0,2685.6,3.72354]
[1739652104565,12.70335,2686.1,2685.6,3.72354]
[1739652105571,12.70335,2686.1,2685.6,7.44702]
[1739652105863,12.70335,2686.1,2685.6,3.72348]
[1739652106173,9.70335,2686.1,2685.6,3.72348]
[1739652107894,0.03790637,2686.0,2685.6,3.72348]
[1739652108197,9.70335,2686.1,2685.6,3.72348]
[1739652108564,0.03790637,2686.0,2685.6,3.72348]
[1739652109667,9.70335,2686.1,2685.6,3.72348]
[1739652109869,11.045951,2686.1,2685.4,5.30383354]
[1739652110068,3.0,2686.0,2685.4,4.5754275]
[1739652110402,3.72314,2685.9,2685.4,4.5754275]
[1739652112485,4.56717637,2685.8,2685.4,0.0830875]
[1739652112828,4.52927,2685.8,2685.4,0.0830875]
[1739652114616,5.1808,2685.7,2685.4,0.0830875]
[1739652122530,5.1808,2685.7,2685.4,3.8069175]
[1739652122731,5.1808,2685.7,2685.4,0.0830875]
[1739652126037,5.1808,2685.7,2685.4,3.8068475]
[1739652126335,5.1808,2685.7,2685.4,0.0830875]
[1739652126738,2.232,2685.6,2685.4,0.0830875]
[1739652127031,5.1808,2685.7,2685.4,0.0830875]
[1739652132504,3.76154637,2685.6,2685.4,0.0830875]
[1739652132709,3.72364,2685.6,2685.4,0.0830875]
[1739652133145,2.232,2684.7,2684.1,2.92529599]
[1739652133438,5.1808,2684.7,2684.1,1.88079446]
[1739652133641,5.1808,2684.7,2684.6,0.76036762]
[1739652134330,14.99191637,2684.7,2684.6,0.76036762]
[1739652134519,3.72547,2684.3,2684.1,1.69159274]
[1739652134840,4.5419,2684.2,2684.1,1.69159274]
[1739652135146,7.5419,2684.2,2684.1,1.69159274]
[1739652135448,8.8102009,2684.2,2683.3,4.46688437]
[1739652135745,3.72584,2684.0,2683.3,4.46688437]
[1739652136244,3.72616,2683.8,2683.3,0.74019437]
[1739652136423,0.03790637,2683.7,2683.3,0.74019437]
[1739652136624,3.72618,2683.8,2683.1,3.72693]
[1739652136825,4.55302,2683.8,2683.1,3.72693]
[1739652137020,0.82684,2683.8,2683.1,3.72693]
[1739652137237,4.5529,2683.8,2683.0,3.72707]
[1739652137419,0.82684,2683.8,2683.2,4.47657085]
[1739652137627,0.82684,2683.8,2683.2,0.74973085]
[1739652137833,0.82684,2683.8,2683.2,4.47654085]
[1739652138366,0.82684,2683.8,2683.4,3.72658]
[1739652138519,0.82684,2683.8,2683.2,4.47654085]
[1739652138719,4.55291,2683.8,2683.2,4.47654085]
[1739652139066,4.55291,2683.8,2683.2,3.72681]
[1739652139231,0.82684,2683.8,2683.0,3.72708]
[1739652139417,2.83603678,2683.3,2682.7,3.8727056]
[1739652139617,2.87394315,2683.3,2682.7,3.8727056]
[1739652140143,6.60069315,2683.3,2682.7,3.8727056]
[1739652140956,0.7795,2683.2,2682.7,3.8727056]
[1739652141152,2.83603678,2683.0,2682.7,0.1452156]
[1739652141357,0.7795,2682.8,2682.7,0.1452156]
[1739652142129,4.50694,2682.8,2682.7,0.1452156]
[1739652142333,4.54484637,2682.8,2682.7,0.1452156]
[1739652143238,4.50694,2682.8,2682.7,0.1452156]
[1739652143430,8.1808,2682.8,2682.1,0.005]
[1739652143754,2.83603678,2682.2,2682.1,0.005]
[1739652144856,8.01683678,2682.2,2682.1,0.005]
[1739652146972,12.52461678,2682.2,2682.1,0.005]
[1739652147323,8.79633678,2682.2,2682.1,0.005]
[1739652147633,5.1808,2682.2,2682.1,4.49942]
[1739652147831,5.1808,2682.2,2682.1,5.322217]
[1739652150195,5.1808,2682.7,2682.1,1.593797]
[1739652150372,5.1808,2682.7,2682.4,7.45586]
[1739652150682,5.1808,2682.7,2682.4,3.72793]
[1739652151491,5.1808,2682.7,2682.4,3.72797]
[1739652152198,5.1808,2682.7,2682.4,7.45588]
[1739652152338,5.1808,2682.7,2682.5,3.72786]
[1739652153167,5.1808,2682.7,2682.5,3.72785]
[1739652153351,5.1808,2682.7,2682.4,3.72791]
[1739652153546,5.1808,2682.7,2682.4,3.72789]
[1739652153871,5.1808,2682.7,2682.5,3.72781]
[1739652154776,5.1808,2682.7,2682.1,0.005]
[1739652154777,6.36043368,2682.7,2682.1,0.005]
[1739652155071,2.83603678,2682.5,2682.3,3.72806]
[1739652155661,5.1808,2682.7,2682.5,3.72777]
[1739652155868,5.1808,2682.7,2682.6,3.72772]
[1739652156261,5.1808,2682.7,2682.5,3.72776]
[1739652156939,6.07683,2682.7,2682.3,3.72804]
[1739652157143,0.03790637,2682.6,2682.3,7.45611]
[1739652157375,6.07683,2682.7,2682.3,3.72804]
[1739652157672,6.11473637,2682.7,2682.3,3.72804]
[1739652157854,6.07683,2682.7,2682.3,7.45609]
[1739652158265,6.07683,2682.7,2682.4,3.72793]
[1739652158458,5.1808,2682.7,2682.4,3.72792]
[1739652158656,5.1808,2682.7,2682.4,3.72791]
[1739652159392,0.03790637,2682.6,2682.4,3.72791]
[1739652159592,5.1808,2682.7,2682.4,3.72791]
[1739652159759,6.449564,2682.7,2682.4,3.72791]
[1739652160161,0.8277,2682.6,2682.4,3.72791]
[1739652160361,0.8277,2682.6,2682.4,7.45583]
[1739652160590,0.8277,2682.6,2682.4,3.72791]
[1739652162166,0.03790637,2682.5,2682.4,3.72791]
[1739652162365,6.0085,2682.6,2682.4,3.72791]
[1739652163277,6.0085,2682.6,2682.4,7.45583]
[1739652163476,6.0085,2682.6,2682.4,3.72791]
[1739652164194,6.0085,2682.6,2682.4,7.45583]
[1739652164567,6.0085,2682.6,2682.4,3.72791]
[1739652164769,6.0085,2682.6,2682.5,3.72786]
[1739652166096,6.0085,2682.6,2682.4,3.72791]
[1739652166306,6.0085,2682.6,2682.4,7.45583]
[1739652167118,6.0085,2682.6,2682.4,7.45582]
[1739652167818,6.0085,2682.6,2682.4,3.72791]
[1739652168017,6.0085,2682.6,2682.4,7.45581]
[1739652168214,5.1808,2682.6,2682.5,3.72786]
[1739652169814,5.1808,2682.6,2682.4,3.7279]
[1739652170020,6.08058,2682.6,2682.4,7.45582]
[1739652170607,6.08058,2682.6,2682.5,3.72786]
[1739652172740,6.08058,2682.6,2682.2,4.53908]
[1739652173045,6.08058,2682.6,2682.4,3.728]
[1739652173340,6.08058,2682.6,2682.2,3.72818]
[1739652174248,5.1808,2682.4,2682.2,3.72828]
[1739652174771,0.817,2682.3,2682.1,0.005]
[1739652176133,5.9978,2682.3,2682.1,0.005]
[1739652176469,0.59978,2682.2,2682.1,0.005]
[1739652178171,5.9978,2682.3,2682.1,3.73342]
[1739652178380,3.049,2682.2,2682.1,0.005]
[1739652180565,6.77728,2682.2,2682.1,0.005]
[1739652180868,3.049,2682.2,2682.1,0.005]
[1739652181177,0.817,2682.2,2682.1,0.005]
[1739652181373,2.039686,2682.2,2682.1,0.005]
[1739652181770,4.271686,2682.2,2682.1,0.005]
[1739652181982,4.644286,2682.2,2682.1,0.005]
[1739652182176,4.271686,2682.2,2682.1,0.005]
[1739652182991,7.220486,2682.2,2682.1,0.005]
[1739652183469,5.1808,2682.2,2682.1,3.73342]
[1739652183670,5.1808,2682.7,2682.5,3.72778]
[1739652184599,5.1808,2682.7,2682.6,3.72772]
[1739652187962,5.1808,2682.7,2682.5,4.55208]
[1739652188604,5.1808,2682.7,2682.5,4.55207]
[1739652189302,5.1808,2682.7,2682.6,3.72772]
[1739652197764,5.1808,2682.7,2682.5,3.72777]
[1739652197952,5.69888,2682.7,2682.4,3.72792]
[1739652198286,5.1808,2682.7,2682.5,3.7278]
[1739652199277,5.1808,2682.7,2682.6,3.72772]
[1739652199479,8.9324,2682.7,2682.4,3.72792]
[1739652199780,8.9324,2682.7,2682.4,3.7279]
[1739652200083,8.9324,2682.7,2682.5,3.72785]
[1739652200435,8.1808,2682.7,2682.5,3.72785]
[1739652200678,5.1808,2682.7,2682.6,3.72772]
[1739652208399,5.1808,2683.3,2683.1,3.72694]
[1739652208763,5.1808,2683.3,2682.7,0.7514]
[1739652209019,0.03790637,2683.2,2682.5,0.7514]
[1739652209180,3.7516,2683.1,2682.5,0.7514]
[1739652209731,3.72717,2683.0,2682.5,0.7514]
[1739652209874,8.720427,2683.0,2682.5,0.7514]
[1739652210500,4.993127,2683.0,2682.5,0.7514]
[1739652210707,8.720417,2683.0,2682.5,0.7514]
[1739652210998,3.72751,2682.8,2682.5,0.7514]
[1739652211297,7.45507,2682.8,2682.5,0.7514]
[1739652211490,3.72751,2682.8,2682.5,0.7514]
[1739652213021,4.53957,2682.7,2682.1,0.005]
[1739652213224,3.72779,2682.6,2682.1,0.005]
[1739652213428,3.72779,2682.6,2682.1,3.73339]
[1739652213723,4.53957,2682.7,2682.1,3.73339]
[1739652214067,4.53957,2682.7,2682.1,4.46186114]
[1739652215369,3.72738,2682.9,2682.3,0.7826]
[1739652215609,3.72753,2682.8,2682.3,4.51073]
[1739652216579,3.72744,2682.8,2682.3,4.51073]
[1739652217071,3.57775,2682.6,2682.3,0.7826]
[1739652222630,0.03790637,2682.7,2682.1,1.51927114]
[1739652222926,3.72793,2682.5,2682.1,1.51927114]
[1739652223126,3.72793,2682.5,2682.1,2.41692125]
[1739652229684,3.72773,2682.6,2682.1,6.14532125]
[1739652231217,3.72763,2682.7,2682.1,6.14532125]
[1739652231398,3.72782,2682.6,2682.1,6.14532125]
[1739652235049,3.7279,2682.5,2682.1,2.41692125]
[1739652237324,3.7279,2682.5,2682.2,0.61454413]
[1739652241193,3.7279,2682.5,2682.1,1.51927114]
[1739652243393,3.72775,2682.6,2682.1,1.51927114]
[1739652243702,3.72775,2682.6,2682.1,5.24768114]
[1739652245829,3.72775,2682.6,2682.2,3.72828]
[1739652246031,3.72759,2682.7,2682.2,3.72825]
[1739652246234,3.72759,2682.7,2682.1,5.24768114]
[1739652246395,3.72773,2682.6,2682.1,5.77238925]
[1739652248533,3.72773,2682.6,2682.2,3.72827]
[1739652248698,3.72773,2682.6,2682.1,5.77237925]
[1739652251435,0.03790637,2682.7,2682.1,5.77237925]
[1739652251614,3.72772,2682.6,2682.1,5.77237925]
[1739652257757,7.45552,2682.6,2682.1,5.77237925]
[1739652258057,3.72772,2682.6,2682.1,5.77237925]
[1739652259152,3.72744,2682.8,2682.2,3.72819]
[1739652259354,3.72766,2682.7,2682.1,5.77237925]
[1739652259850,3.72766,2682.7,2682.2,0.7523]
[1739652260337,3.72758,2682.7,2682.2,4.48049]
[1739652262320,3.7276,2682.7,2682.2,4.48049]
[1739652262528,5.1808,2683.0,2682.5,1.41934064]
[1739652262721,5.1808,2683.0,2682.7,0.7523]
[1739652263034,8.90755,2683.3,2682.8,3.72735]
[1739652263229,5.1808,2683.3,2682.8,3.72735]
[1739652264543,8.90759,2683.3,2682.8,3.72735]
[1739652264734,5.1808,2683.3,2682.8,3.72735]
[1739652265045,8.90758,2683.3,2682.8,3.72735]
[1739652265246,8.90758,2683.3,2682.8,4.54808]
[1739652265444,5.1808,2683.3,2682.8,0.82073]
[1739652265623,5.1808,2683.3,2683.0,0.7523]
[1739652266248,9.66377,2683.6,2683.1,3.72702]
[1739652266540,13.39021,2683.6,2683.0,0.7523]
[1739652267148,9.66377,2683.6,2683.0,4.47946]
[1739652267341,13.39023,2683.6,2683.0,4.47946]
[1739652267535,3.72657,2683.5,2683.1,0.820666]
[1739652267737,3.76447637,2683.5,2683.1,0.820666]
[1739652267938,3.72657,2683.5,2683.1,0.820666]
[1739652268539,13.39023,2683.6,2683.1,0.820666]
[1739652268914,9.66377,2683.6,2683.1,0.820666]
[1739652269119,3.72647,2683.5,2683.1,0.820666]
[1739652269319,3.72647,2683.5,2683.2,0.5300056]
[1739652272320,5.9374,2683.6,2683.3,0.7833]
[1739652272321,5.1808,2683.6,2683.3,0.7833]
[1739652272516,5.1808,2683.6,2683.3,4.50998]
[1739652272733,5.1808,2683.6,2683.3,4.51001]
[1739652273135,5.1808,2683.6,2683.4,3.72661]
[1739652273335,5.1808,2683.6,2683.5,0.450991]
[1739652273965,5.1808,2683.6,2683.3,4.50992]
[1739652274432,5.1808,2683.6,2683.3,0.7833]
[1739652274628,5.9941,2683.6,2683.2,0.5300056]
[1739652275145,5.9941,2683.6,2683.2,4.2568756]
[1739652275343,5.1808,2683.6,2683.2,4.2568756]
[1739652275545,5.1808,2683.6,2683.3,0.50401756]
[1739652276630,5.1808,2683.6,2683.3,4.23075756]
[1739652277141,5.1808,2683.6,2683.4,4.5099]
[1739652277763,5.1808,2683.6,2683.4,0.7833]
[1739652279051,5.1808,2683.6,2683.4,4.50988]
[1739652279256,5.1808,2683.6,2683.5,0.50138976]
[1739652282265,5.1808,2683.6,2683.4,5.24417778]
[1739652282566,5.1808,2683.6,2683.4,1.51759778]
[1739652282767,5.1808,2683.6,2683.4,0.7833]
[1739652283073,5.1808,2683.6,2683.3,0.50401756]
[1739652283234,5.1808,2683.6,2683.3,1.24928045]
[1739652283860,5.9941,2683.6,2683.2,5.0400756]
[1739652284228,5.9941,2683.6,2683.2,8.7668956]
[1739652285035,5.9941,2683.6,2683.2,9.52945205]
[1739652285431,5.9941,2683.6,2683.2,5.80263205]
[1739652286054,5.9941,2683.6,2683.2,9.52944205]
[1739652286389,5.1808,2683.6,2683.4,3.72651]
[1739652286591,5.1808,2683.6,2683.3,1.09487827]
[1739652287253,5.1808,2683.6,2683.4,3.72659]
[1739652287654,5.1808,2683.6,2683.3,1.09487827]
[1739652287859,5.1808,2683.6,2683.3,4.82161827]
[1739652288970,5.1808,2683.6,2683.4,4.73602547]
[1739652289671,5.1808,2683.6,2683.4,1.00942547]
[1739652290675,5.1808,2683.6,2683.2,8.99947645]
[1739652294067,5.1808,2683.6,2683.2,8.99948645]
[1739652294571,5.1808,2683.6,2683.2,5.27266645]
[1739652295977,5.1808,2683.6,2683.2,8.99948645]
[1739652296678,5.1808,2683.6,2683.2,5.27266645]
[1739652296878,5.1808,2683.6,2683.2,8.99946645]
[1739652297067,5.1808,2683.6,2683.2,9.49651036]
[1739652297560,5.1808,2683.6,2683.2,5.76970036]
[1739652297745,5.1808,2683.6,2683.3,3.72673]
[1739652298568,5.1808,2683.6,2683.2,5.76970036]
[1739652298769,5.1808,2683.6,2683.2,9.49651036]
[1739652299294,5.1808,2683.6,2683.2,5.76970036]
[1739652299507,5.1808,2683.6,2683.3,3.72673]
[1739652301053,5.1808,2683.6,2683.2,5.76970036]
[1739652301260,5.1808,2683.6,2683.2,9.49651036]
[1739652301463,5.1808,2683.6,2683.2,5.76970036]
[1739652301669,5.1808,2683.6,2683.2,9.49652036]
[1739652304182,5.1808,2683.6,2683.2,5.76970036]
[1739652304390,5.1808,2683.6,2683.3,3.72674]
[1739652304586,5.1808,2683.6,2683.2,5.76970036]
[1739652304788,5.1808,2683.6,2683.2,9.49650036]
[1739652305092,5.1808,2683.6,2683.3,3.72673]
[1739652306290,5.1808,2683.6,2683.2,5.76970036]
[1739652306291,5.1808,2683.6,2683.2,0.76255645]
[1739652306497,0.8096,2683.4,2683.0,3.72706]
[1739652306801,0.8096,2683.4,2683.1,0.372706]
[1739652308497,0.8096,2683.4,2682.8,4.54295]
[1739652308498,3.72676,2683.3,2682.8,4.54295]
[1739652308798,3.76466637,2683.3,2682.9,0.73405983]
[1739652308958,0.8096,2683.2,2682.9,0.73405983]
[1739652309158,4.53656,2683.2,2682.9,0.73405983]
[1739652309606,4.57446637,2683.2,2682.9,0.73405983]
[1739652309807,4.53656,2683.2,2682.9,0.73405983]
[1739652310008,4.57446637,2683.2,2682.9,0.73405983]
[1739652310324,3.72704,2683.1,2682.4,4.54352]
[1739652310616,4.53706,2682.8,2682.2,3.72818]
[1739652312109,4.53706,2682.8,2682.2,9.0931686]
[1739652312422,4.53706,2682.8,2682.3,3.72811]
[1739652313023,4.53706,2682.8,2682.2,12.8213686]
[1739652313196,4.53706,2682.8,2682.2,11.43559952]
[1739652314126,4.53706,2682.8,2682.3,3.72813]
[1739652314299,0.8096,2682.8,2682.4,3.72792]
[1739652315017,0.8096,2682.8,2682.3,1.41934064]
[1739652315400,0.8096,2682.8,2682.3,5.14735064]
[1739652315619,0.8096,2682.8,2682.4,5.38615302]
[1739652316121,0.8096,2682.8,2682.5,3.72783]
[1739652316323,0.8096,2682.8,2682.4,5.38615302]
[1739652320898,4.53712,2682.8,2682.4,1.65829302]
[1739652321133,0.8096,2682.8,2682.4,5.38617302]
[1739652322193,0.8096,2682.8,2682.5,0.53214634]
[1739652323188,8.9079,2683.1,2682.5,0.53214634]
[1739652323189,5.9346,2683.1,2682.8,3.72741]
[1739652323633,5.1808,2683.1,2683.0,3.72717]
[1739652325375,0.7538,2683.5,2683.3,3.72673]
[1739652326575,5.1808,2683.6,2683.3,3.72673]
[1739652327457,5.1808,2683.6,2683.4,3.72655]
[1739652327622,5.1808,2683.6,2683.1,3.727]
[1739652327825,5.1808,2683.6,2683.1,5.06213406]
[1739652328250,5.21870637,2683.6,2683.1,5.06213406]
[1739652328529,5.1808,2683.6,2683.1,5.06207406]
[1739652329030,5.1808,2683.6,2683.2,3.72687]
[1739652329225,5.1808,2683.6,2683.4,3.72658]
[1739652329767,5.1808,2683.6,2683.2,7.4536]
[1739652329950,5.1808,2683.6,2683.2,8.47440747]
[1739652330562,5.1808,2683.6,2683.3,3.72673]
[1739652330862,5.1808,2683.6,2683.5,3.72647]
[1739652331453,5.1808,2683.6,2683.3,3.72667]
[1739652332040,5.1808,2683.6,2683.4,3.72655]
[1739652333069,5.1808,2683.6,2683.3,3.72664]
[1739652333389,5.1808,2683.6,2683.3,4.55225244]
[1739652333892,5.1808,2683.6,2683.4,3.72659]
[1739652334296,5.1808,2683.6,2683.3,4.55225244]
[1739652334857,5.1808,2683.6,2683.3,8.27892244]
[1739652335494,5.1808,2683.6,2683.4,3.72658]
[1739652335789,5.1808,2683.6,2683.3,8.27892244]
[1739652336097,5.1808,2683.6,2683.4,3.72657]
[1739652336992,5.1808,2683.6,2683.3,8.27891244]
[1739652337307,5.1808,2683.6,2683.3,4.55225244]
[1739652337616,0.8235,2683.5,2683.2,4.48108222]
[1739652337917,4.54999,2683.5,2682.8,0.8011]
[1739652338074,3.72677,2683.3,2682.8,3.72743]
[1739652338259,0.8235,2683.4,2683.0,3.72715]
[1739652338461,0.8235,2683.4,2682.9,3.7273]
[1739652339161,0.8235,2683.4,2683.0,3.72713]
[1739652339570,0.8235,2683.4,2682.7,5.87732894]
[1739652339801,0.8235,2683.4,2682.9,3.7273]
[1739652340023,3.72681,2683.3,2682.8,3.72744]
[1739652340223,0.8235,2683.4,2682.8,3.72744]
[1739652340224,4.55022,2683.4,2682.8,3.72744]
[1739652340421,0.8235,2683.4,2682.9,3.72728]
[1739652340628,0.8235,2683.4,2683.0,3.72705]
[1739652343328,6.0043,2683.4,2683.0,3.72705]
[1739652344026,5.1808,2683.4,2683.3,3.72675]
[1739652346499,0.8235,2683.8,2683.3,3.72675]
[1739652346821,0.8235,2683.8,2683.4,3.72651]
[1739652347340,0.8235,2683.8,2683.5,3.72647]
[1739652348421,0.8235,2683.8,2683.4,4.55627]
[1739652348596,0.8235,2683.8,2683.4,5.60103848]
[1739652349497,0.8235,2683.8,2683.4,1.87446848]
[1739652349695,0.8235,2683.8,2683.4,1.04476848]
[1739652350000,4.54956,2683.8,2683.3,4.47207412]
[1739652350199,0.8235,2683.8,2683.3,8.19874412]
[1739652350416,0.8235,2683.8,2683.3,4.47207412]
[1739652350618,4.54961,2683.8,2683.3,4.47207412]
[1739652350949,4.58751637,2683.8,2683.3,4.47207412]
[1739652351124,0.8235,2683.8,2683.3,4.47207412]
[1739652351334,0.86140637,2683.8,2683.3,0.74540412]
[1739652351511,3.72629,2683.7,2683.3,0.74540412]
[1739652352630,8.90709,2683.7,2683.3,0.74540412]
[1739652352810,8.90709,2683.7,2683.1,8.26837]
[1739652353401,8.90709,2683.7,2683.2,3.72689]
[1739652354767,8.90709,2683.7,2683.1,4.54143]
[1739652354921,4.48615,2683.5,2683.0,0.7279612]
[1739652355118,3.72668,2683.4,2683.0,0.7279612]
[1739652355716,3.72668,2683.4,2682.9,3.72721]
[1739652356341,4.48615,2683.5,2683.0,3.72715]
[1739652356767,4.48615,2683.5,2682.9,3.72721]
[1739652356920,4.48615,2683.5,2682.9,7.45442]
[1739652357250,4.48615,2683.5,2682.9,3.72721]
[1739652357452,8.2127,2683.5,2682.9,3.72721]
[1739652357616,4.48615,2683.5,2682.9,3.72721]
[1739652358018,3.72668,2683.4,2682.9,3.72721]
[1739652358552,0.7596,2683.3,2682.9,3.72728]
[1739652359251,0.7596,2683.3,2682.7,6.69074888]
[1739652359458,0.7596,2683.3,2682.8,3.72737]
[1739652360259,4.48639,2683.3,2682.7,7.4130384]
[1739652360557,0.7596,2683.1,2682.7,3.72749]
[1739652360956,0.7596,2683.1,2682.7,7.455]
[1739652361264,0.7596,2683.1,2682.7,3.72749]
[1739652361645,0.7596,2683.1,2682.8,3.72744]
[1739652362371,0.7596,2683.1,2682.7,3.72749]
[1739652362580,0.7596,2683.1,2682.7,7.88096363]
[1739652362760,0.7596,2683.1,2682.7,4.15345363]
[1739652367376,4.4867,2683.1,2682.7,0.42596363]
[1739652367577,0.7596,2683.1,2682.6,0.74783074]
[1739652368077,0.7596,2683.1,2682.6,4.47555074]
[1739652368260,0.7596,2683.1,2682.5,3.72776]
[1739652368261,3.72724,2683.0,2682.5,3.72776]
[1739652368471,0.8291,2682.8,2682.3,3.72804]
[1739652368669,0.8291,2682.8,2682.4,1.671984]
[1739652369381,0.8291,2682.8,2682.4,6.15094344]
[1739652370107,0.8291,2682.8,2682.6,3.7276]
[1739652370274,0.8291,2683.0,2682.6,3.72764]
[1739652371866,0.8291,2683.0,2682.6,4.79125834]
[1739652373103,0.8291,2683.0,2682.7,3.72757]
[1739652373600,0.8291,2683.0,2682.8,3.72741]
[1739652373797,5.1808,2683.1,2682.5,0.7576]
[1739652373998,5.1808,2683.1,2682.9,3.72729]
[1739652374407,0.8291,2683.2,2683.1,3.72703]
[1739652374594,4.55565,2683.5,2682.9,4.472669]
[1739652374977,3.72661,2683.4,2682.9,4.472669]
[1739652375786,0.8291,2683.5,2683.0,3.72717]
[1739652375987,4.5556,2683.5,2683.0,3.72717]
[1739652376186,4.5556,2683.5,2683.0,4.2501949]
[1739652376904,0.8291,2683.5,2683.1,3.727]
[1739652377104,0.8291,2683.5,2683.2,3.72679]
[1739652377708,0.8291,2683.5,2683.3,3.72673]
[1739652377897,6.72614,2683.8,2683.3,3.72673]
[1739652378207,0.8119,2683.7,2683.3,3.72673]
[1739652378395,0.8119,2683.7,2683.3,4.550883]
[1739652378575,0.8119,2683.7,2683.3,4.550853]
[1739652379408,0.8119,2683.9,2683.4,0.03726273]
[1739652379605,0.8119,2683.9,2683.6,3.72624]
[1739652379814,0.8119,2683.9,2683.5,3.72637]
[1739652380712,0.8119,2683.9,2683.5,4.471677]
[1739652381314,4.53782,2683.9,2683.5,0.745307]
[1739652381482,4.53782,2683.9,2683.4,3.72659]
[1739652382075,0.8119,2683.9,2683.5,3.72644]
[1739652382281,4.53782,2683.9,2683.4,3.72659]
[1739652383319,3.72613,2683.8,2683.2,3.72681]
[1739652383527,3.72635,2683.6,2683.0,3.72706]
[1739652384321,3.72635,2683.6,2682.9,1.50884289]
[1739652384322,3.72661,2683.4,2682.9,1.50884289]
[1739652384496,3.72661,2683.4,2682.8,3.72732]
[1739652384895,3.72661,2683.4,2682.9,3.7273]
[1739652386520,3.72661,2683.4,2682.9,3.72723]
[1739652387037,7.45334,2683.4,2682.8,4.4600454]
[1739652387241,0.8119,2683.5,2682.9,3.72718]
[1739652387525,0.8119,2683.5,2682.8,5.35760894]
[1739652387687,3.72669,2683.4,2682.8,4.4600054]
[1739652387888,0.8119,2683.3,2682.8,4.4600054]
[1739652388311,0.8119,2683.3,2682.8,8.1873754]
[1739652388534,0.8119,2683.3,2682.8,3.72737]
[1739652388917,0.8119,2683.3,2682.9,3.7273]
[1739652389113,0.8119,2683.3,2682.8,3.72737]
[1739652389319,0.8119,2683.3,2683.0,3.72716]
[1739652389705,3.0,2683.5,2683.1,3.72695]
[1739652389912,6.72642,2683.6,2683.1,3.72695]
[1739652390611,10.45286,2683.6,2683.1,3.72695]
[1739652390816,6.72642,2683.6,2683.1,3.72695]
[1739652391798,3.0,2683.6,2683.1,3.72695]
[1739652391998,5.9927,2683.7,2683.3,7.45338]
[1739652392221,5.9927,2683.7,2683.4,3.7266]
[1739652392426,5.9927,2683.7,2683.5,3.72646]
[1739652392621,5.1808,2683.7,2683.5,3.72646]
[1739652393443,5.1808,2683.7,2683.4,0.8071]
[1739652393640,5.1808,2683.7,2683.4,1.260473]
[1739652393943,5.1808,2683.7,2683.4,4.986993]